fUST/lending_fUST_20250923
["ID","MTS","AMOUNT","RATE_DAILY","PERIOD"]
[387081019,1758566694989,-500.0,0.00018952,2]
[387081020,1758566695158,-536.68104292,0.00018952,2]
[387081021,1758566695186,-500.0,0.00018952,2]
[387081022,1758566695214,-1200.0,0.00018952,2]
[387081023,1758566701762,-300.0,0.00018951,2]
[387081024,1758566706790,-300.0,0.00018951,2]
[387081025,1758566706820,-300.0,0.00018951,2]
[387081026,1758566706849,-1200.0,0.00018951,2]
[387081027,1758566706995,-7055.89986643,0.00018952,2]
[387081029,1758566709204,-10000.01,0.00018952,2]
[387081030,1758566709342,-10000.01,0.00018952,2]
[387081031,1758566711742,-10000.01,0.00018952,2]
[387081032,1758566711878,-10000.01,0.00018952,2]
[387081033,1758566714312,-2944.06013357,0.00018952,2]
[387081034,1758566714345,-4111.88973286,0.00018953,2]
[387081035,1758566714423,-10000.01,0.00018953,2]
[387081038,1758566721749,-3388.59897194,0.00018953,2]
[387081039,1758566755852,666.0,0.00018189,2]
[387081047,1758566953177,517.0,7.99e-06,60]
[387081051,1758567025583,1332.0,0.00029164,60]
[387081087,1758567031998,-500.0,0.00019,2]
[387081089,1758567032008,-181.01285871,0.00019,2]
[387081097,1758567032104,-318.98714129,0.00019,2]
[387081099,1758567032114,-500.0,0.00019,2]
[387081101,1758567032123,-217.0,0.00019038,2]
[387081103,1758567032132,-300.0,0.00019038,2]
[387081105,1758567032142,-300.0,0.00019038,2]
[387081107,1758567032151,-1200.0,0.00019038,2]
[387081109,1758567032160,-331.63354578,0.00019039,2]
[387081111,1758567032169,-220.91859109,0.00019039,2]
[387081113,1758567032178,-672.67296256,0.00019039,2]
[387081115,1758567032188,-672.67296256,0.00019039,2]
[387081118,1758567032198,-672.67296256,0.00019039,2]
[387081120,1758567032208,-672.67296256,0.00019039,2]
[387081122,1758567032217,-672.67296256,0.00019039,2]
[387081123,1758567032227,-672.67296256,0.00019039,2]
[387081125,1758567032236,-672.67296256,0.00019039,2]
[387081127,1758567032245,-672.67296256,0.00019039,2]
[387081129,1758567032254,-672.67296256,0.00019039,2]
[387081130,1758567032263,-672.67296256,0.00019039,2]
[387081131,1758567032271,-672.67296256,0.00019039,2]
[387081132,1758567032281,-672.67296256,0.00019039,2]
[387081133,1758567032290,-672.67296256,0.00019039,2]
[387081134,1758567032299,-672.67296256,0.00019039,2]
[387081135,1758567032308,-672.67296256,0.00019039,2]
[387081136,1758567032318,-672.67296256,0.00019039,2]
[387081137,1758567032327,-672.67296256,0.00019039,2]
[387081138,1758567032336,-672.67296256,0.00019039,2]
[387081139,1758567032346,-672.67296256,0.00019039,2]
[387081140,1758567032355,-672.67296256,0.00019039,2]
[387081141,1758567032364,-720.72103132,0.00019039,2]
[387081142,1758567032373,-720.72103132,0.00019039,2]
[387081143,1758567032382,-720.72103132,0.00019039,2]
[387081144,1758567032391,-720.72103132,0.00019039,2]
[387081145,1758567032401,-720.72103132,0.00019039,2]
[387081146,1758567032410,-720.72103132,0.00019039,2]
[387081147,1758567032419,-720.72103132,0.00019039,2]
[387081148,1758567032429,-1200.0,0.00019039,2]
[387081149,1758567032439,-151.02566575,0.0001904,2]
[387081162,1758567037857,-170.7423381,0.00019038,2]
[387081163,1758567037867,-15524.28188523,0.0001904,2]
[387081164,1758567037878,-4342.956325,0.0001904,2]
[387081165,1758567037963,-14498.24849427,0.0001904,2]
[387081166,1758567037973,-2000.0,0.00019053,2]
[387081168,1758567037981,-2000.0,0.00019053,2]
[387081169,1758567037990,-1794.939,0.00019053,2]
[387081170,1758567037999,-500.0,0.00019073,2]
[387081171,1758567038009,-500.0,0.00019073,2]
[387081172,1758567038018,-33379.60149086,0.00019078,2]
[387081191,1758567039974,-2318.01112595,0.00019078,2]
[387081195,1758567040027,-3724.15376204,0.00019078,2]
[387081196,1758567040038,-357.46,0.00019078,2]
[387081197,1758567040079,-1595.8,0.00019078,2]
[387081198,1758567040091,-18774.88614663,0.00019078,2]
[387081199,1758567040135,-1700.0,0.00019078,2]
[387081200,1758567040148,-13079.52622857,0.00019078,2]
[387081205,1758567042850,-5070.56124595,0.00019078,2]
[387081206,1758567042859,-500.0,0.00019173,2]
[387081207,1758567042869,-500.0,0.00019173,2]
[387081208,1758567042879,-500.0,0.00019173,2]
[387081209,1758567042892,-500.0,0.00019173,2]
[387081210,1758567042901,-500.0,0.00019173,2]
[387081211,1758567042912,-215.3706065,0.00019178,2]
[387081212,1758567042921,-512.91816341,0.00019178,2]
[387081213,1758567042930,-480.0,0.00019178,2]
[387081214,1758567042940,-480.0,0.00019178,2]
[387081215,1758567042949,-480.0,0.00019178,2]
[387081216,1758567042959,-480.0,0.00019178,2]
[387081217,1758567042968,-480.0,0.00019178,2]
[387081218,1758567042977,-480.0,0.00019178,2]
[387081219,1758567042986,-480.0,0.00019178,2]
[387081220,1758567042996,-480.0,0.00019178,2]
[387081221,1758567043005,-480.0,0.00019178,2]
[387081222,1758567043014,-480.0,0.00019178,2]
[387081223,1758567043024,-480.0,0.00019178,2]
[387081224,1758567043033,-480.0,0.00019178,2]
[387081225,1758567043042,-480.0,0.00019178,2]
[387081226,1758567043051,-480.0,0.00019178,2]
[387081227,1758567043061,-480.0,0.00019178,2]
[387081228,1758567043070,-480.0,0.00019178,2]
[387081229,1758567043080,-548.23,0.00019178,2]
[387081230,1758567043089,-480.0,0.00019178,2]
[387081231,1758567043098,-466.2589212,0.00019178,2]
[387081232,1758567043107,-488.81539216,0.00019178,2]
[387081233,1758567043117,-435.83,0.00019178,2]
[387081234,1758567043125,-486.15753045,0.00019178,2]
[387081235,1758567043135,-480.0,0.00019178,2]
[387081236,1758567043252,-489.32028551,0.00019178,2]
[387081237,1758567043262,-480.0,0.00019178,2]
[387081238,1758567043271,-480.0,0.00019178,2]
[387081239,1758567043281,-480.0,0.00019178,2]
[387081240,1758567043291,-480.0,0.00019178,2]
[387081241,1758567043299,-484.084605,0.00019178,2]
[387081242,1758567043309,-480.0,0.00019178,2]
[387081243,1758567043318,-500.0,0.00019178,2]
[387081244,1758567043327,-500.0,0.00019178,2]
[387081245,1758567043335,-500.0,0.00019178,2]
[387081246,1758567043344,-482.11502833,0.00019178,2]
[387081247,1758567043354,-480.0,0.00019178,2]
[387081248,1758567043363,-479.3059457,0.00019178,2]
[387081249,1758567043372,-480.0,0.00019178,2]
[387081250,1758567043381,-480.0,0.00019178,2]
[387081252,1758567043390,-480.0,0.00019178,2]
[387081253,1758567043399,-482.53311514,0.00019178,2]
[387081254,1758567043408,-480.76422471,0.00019178,2]
[387081255,1758567043417,-480.0,0.00019178,2]
[387081256,1758567043426,-480.0,0.00019178,2]
[387081257,1758567043435,-484.1518559,0.00019178,2]
[387081258,1758567043444,-480.0,0.00019178,2]
[387081259,1758567043453,-480.0,0.00019178,2]
[387081260,1758567043462,-331.83830965,0.00019178,2]
[387081261,1758567043475,-148.16169035,0.00019178,2]
[387081262,1758567043484,-480.0,0.00019178,2]
[387081263,1758567043493,-480.0,0.00019178,2]
[387081264,1758567043503,-278.29296045,0.00019178,2]
[387081265,1758567043512,-480.0,0.00019178,2]
[387081266,1758567043522,-480.0,0.00019178,2]
[387081267,1758567043531,-480.0,0.00019178,2]
[387081268,1758567043541,-487.03564083,0.00019178,2]
[387081269,1758567043550,-480.0,0.00019178,2]
[387081270,1758567043559,-480.0,0.00019178,2]
[387081271,1758567043569,-480.0,0.00019178,2]
[387081272,1758567043578,-480.0,0.00019178,2]
[387081273,1758567043587,-480.0,0.00019178,2]
[387081274,1758567043597,-480.0,0.00019178,2]
[387081275,1758567043608,-480.0,0.00019178,2]
[387081276,1758567043618,-480.0,0.00019178,2]
[387081277,1758567043627,-480.0,0.00019178,2]
[387081278,1758567043637,-480.0,0.00019178,2]
[387081279,1758567043646,-480.0,0.00019178,2]
[387081280,1758567043658,-217.50100791,0.00019178,2]
[387081281,1758567043667,-481.21593913,0.00019178,2]
[387081282,1758567043676,-480.0,0.00019178,2]
[387081283,1758567043687,-480.0,0.00019178,2]
[387081284,1758567043697,-480.0,0.00019178,2]
[387081285,1758567043706,-483.92561366,0.00019178,2]
[387081286,1758567043716,-60.86714767,0.00019178,2]
[387081288,1758567045987,-419.13285233,0.00019178,2]
[387081289,1758567045996,-487.39429315,0.00019178,2]
[387081290,1758567046006,-483.07953942,0.00019178,2]
[387081291,1758567046015,-480.0,0.00019178,2]
[387081292,1758567046024,-490.39641475,0.00019178,2]
[387081293,1758567046034,-489.76442782,0.00019178,2]
[387081294,1758567046043,-484.2633128,0.00019178,2]
[387081295,1758567046052,-480.0,0.00019178,2]
[387081296,1758567046061,-480.0,0.00019178,2]
[387081297,1758567046070,-480.0,0.00019178,2]
[387081298,1758567046079,-480.0,0.00019178,2]
[387081299,1758567046088,-480.0,0.00019178,2]
[387081300,1758567046098,-480.0,0.00019178,2]
[387081301,1758567046107,-143.27358823,0.00019178,2]
[387081302,1758567046119,-340.7239535,0.00019178,2]
[387081303,1758567046128,-480.0,0.00019178,2]
[387081304,1758567046137,-268.51629598,0.00019178,2]
[387081305,1758567046146,-480.0,0.00019178,2]
[387081306,1758567046155,-480.0,0.00019178,2]
[387081307,1758567046165,-482.91,0.00019178,2]
[387081308,1758567046174,-480.0,0.00019178,2]
[387081309,1758567046183,-485.35226245,0.00019178,2]
[387081310,1758567046193,-480.0,0.00019178,2]
[387081311,1758567046202,-485.62909935,0.00019178,2]
[387081312,1758567046211,-480.0,0.00019178,2]
[387081313,1758567046220,-480.0,0.00019178,2]
[387081314,1758567046229,-481.83640574,0.00019178,2]
[387081315,1758567046238,-485.75963669,0.00019178,2]
[387081316,1758567046248,-480.0,0.00019178,2]
[387081317,1758567046257,-483.23820562,0.00019178,2]
[387081318,1758567046266,-568.53,0.00019178,2]
[387081319,1758567046275,-480.0,0.00019178,2]
[387081320,1758567046284,-485.89337091,0.00019178,2]
[387081321,1758567046293,-480.0,0.00019178,2]
[387081322,1758567046302,-480.0,0.00019178,2]
[387081323,1758567046312,-375.792861,0.00019178,2]
[387081324,1758567046320,-480.0,0.00019178,2]
[387081325,1758567046330,-483.19552912,0.00019178,2]
[387081326,1758567046339,-480.0,0.00019178,2]
[387081327,1758567046350,-621.35,0.00019178,2]
[387081328,1758567046359,-480.0,0.00019178,2]
[387081329,1758567046369,-482.6289227,0.00019178,2]
[387081330,1758567046378,-951.26,0.00019178,2]
[387081331,1758567046387,-483.17990022,0.00019178,2]
[387081332,1758567046396,-480.0,0.00019178,2]
[387081333,1758567046405,-480.0,0.00019178,2]
[387081334,1758567046415,-480.0,0.00019178,2]
[387081335,1758567046424,-480.0,0.00019178,2]
[387081336,1758567046434,-480.0,0.00019178,2]
[387081337,1758567046444,-480.0,0.00019178,2]
[387081338,1758567046453,-480.0,0.00019178,2]
[387081339,1758567046463,-480.0,0.00019178,2]
[387081340,1758567046472,-480.0,0.00019178,2]
[387081341,1758567046482,-480.0,0.00019178,2]
[387081342,1758567046491,-559.34915716,0.00019178,2]
[387081343,1758567046501,-480.0,0.00019178,2]
[387081344,1758567046511,-480.0,0.00019178,2]
[387081345,1758567046522,-480.0,0.00019178,2]
[387081346,1758567046531,-484.17814416,0.00019178,2]
[387081347,1758567046540,-504.16,0.00019178,2]
[387081348,1758567046550,-483.33235032,0.00019178,2]
[387081349,1758567046559,-480.0,0.00019178,2]
[387081350,1758567046568,-480.0,0.00019178,2]
[387081351,1758567046577,-480.0,0.00019178,2]
[387081352,1758567046587,-559.50437615,0.00019178,2]
[387081353,1758567046596,-480.0,0.00019178,2]
[387081354,1758567046608,-480.0,0.00019178,2]
[387081355,1758567046619,-480.0,0.00019178,2]
[387081356,1758567046628,-480.0,0.00019178,2]
[387081357,1758567046638,-480.0,0.00019178,2]
[387081358,1758567046648,-480.0,0.00019178,2]
[387081359,1758567046657,-480.0,0.00019178,2]
[387081360,1758567046667,-480.0,0.00019178,2]
[387081361,1758567046676,-480.0,0.00019178,2]
[387081362,1758567046687,-203.65,0.00019178,2]
[387081363,1758567046697,-480.0,0.00019178,2]
[387081364,1758567046706,-285.34702971,0.00019178,2]
[387081365,1758567046715,-480.0,0.00019178,2]
[387081366,1758567046724,-307.56307314,0.00019178,2]
[387081367,1758567046733,-480.0,0.00019178,2]
[387081368,1758567046743,-480.0,0.00019178,2]
[387081369,1758567046754,-480.0,0.00019178,2]
[387081370,1758567046765,-480.0,0.00019178,2]
[387081371,1758567046777,-218.22077244,0.00019178,2]
[387081373,1758567140151,185.878852,0.00018719,2]
[387081374,1758567210916,411.714432,0.0001862,2]
[387081401,1758567737274,400.0,0.0002739,120]
[387081410,1758567879716,666.0,0.00018172,2]
[387081416,1758568084048,152.24,0.00015485,2]
[387081417,1758568084338,152.24,0.00015485,2]
[387081418,1758568084618,152.22,0.00015485,2]
[387081419,1758568171123,-185.878852,0.00018173,2]
[387081480,1758568232385,-1766.05470111,0.0001907,2]
[387081481,1758568232394,-292.60506579,0.00019168,2]
[387081483,1758568232404,-605.86439037,0.00019168,2]
[387081485,1758568232414,-605.86439037,0.00019168,2]
[387081487,1758568232423,-605.86439037,0.00019168,2]
[387081489,1758568232433,-605.86439037,0.00019168,2]
[387081491,1758568232443,-605.86439037,0.00019168,2]
[387081492,1758568232452,-605.86439037,0.00019168,2]
[387081494,1758568232461,-605.86439037,0.00019168,2]
[387081496,1758568232470,-154.64301377,0.00019168,2]
[387081498,1758568232479,-605.86439037,0.00019168,2]
[387081500,1758568232489,-605.86439037,0.00019168,2]
[387081502,1758568232498,-605.86439037,0.00019168,2]
[387081503,1758568232509,-300.0,0.00019168,2]
[387081505,1758568232521,-300.0,0.00019168,2]
[387081507,1758568232530,-1200.0,0.00019168,2]
[387081509,1758568232539,-14530.11600879,0.00019168,2]
[387081999,1758568238064,-605.86439037,0.00019168,2]
[387082001,1758568238074,-605.86439037,0.00019168,2]
[387082003,1758568238083,-605.86439037,0.00019168,2]
[387082005,1758568238093,-605.86439037,0.00019168,2]
[387082007,1758568238103,-605.86439037,0.00019168,2]
[387082009,1758568238112,-605.86439037,0.00019168,2]
[387082011,1758568238122,-605.86439037,0.00019168,2]
[387082026,1758568238252,-10229.26543128,0.00019168,2]
[387082028,1758568238262,-1200.0,0.00019169,2]
[387082030,1758568238271,-500.0,0.00019173,2]
[387082032,1758568238282,-500.0,0.00019173,2]
[387082034,1758568238291,-500.0,0.00019173,2]
[387082035,1758568238301,-506.2630652,0.00019173,2]
[387082037,1758568238310,-438.2092889,0.00019173,2]
[387082039,1758568238319,-500.0,0.00019173,2]
[387082041,1758568238329,-500.0,0.00019173,2]
[387082043,1758568238338,-500.0,0.00019173,2]
[387082045,1758568238348,-500.0,0.00019173,2]
[387082047,1758568238358,-500.0,0.00019173,2]
[387082049,1758568238367,-500.0,0.00019173,2]
[387082051,1758568238377,-500.0,0.00019173,2]
[387082053,1758568238386,-522.59623485,0.00019173,2]
[387082055,1758568238396,-32181.20836511,0.00019178,2]
[387082057,1758568238407,-1013.34323773,0.00019178,2]
[387082060,1758568238418,-5855.33872096,0.00019178,2]
[387082062,1758568238427,-480.0,0.00019178,2]
[387082064,1758568238437,-480.0,0.00019178,2]
[387082066,1758568238447,-480.0,0.00019178,2]
[387082067,1758568238455,-480.0,0.00019178,2]
[387082069,1758568238465,-166.0,0.00019178,2]
[387082071,1758568238474,-166.0,0.00019178,2]
[387082073,1758568238483,-480.0,0.00019178,2]
[387082075,1758568238493,-480.0,0.00019178,2]
[387082077,1758568238502,-480.0,0.00019178,2]
[387082079,1758568238512,-530.02741828,0.00019178,2]
[387082081,1758568238524,-480.0,0.00019178,2]
[387082083,1758568238536,-374.47906482,0.00019178,2]
[387082084,1758568238545,-489.04067253,0.00019178,2]
[387082085,1758568238555,-480.0,0.00019178,2]
[387082086,1758568238564,-556.49275551,0.00019178,2]
[387082087,1758568238574,-241.89476825,0.00019178,2]
[387082088,1758568238583,-480.0,0.00019178,2]
[387082089,1758568238593,-470.75255859,0.00019178,2]
[387082090,1758568238603,-328.0,0.00019178,2]
[387082091,1758568238613,-160.0,0.00019178,2]
[387082092,1758568238623,-328.0,0.00019178,2]
[387082093,1758568238632,-328.0,0.00019178,2]
[387082094,1758568238641,-328.0,0.00019178,2]
[387082096,1758568238651,-328.0,0.00019178,2]
[387082098,1758568238660,-328.0,0.00019178,2]
[387082100,1758568238670,-328.0,0.00019178,2]
[387082102,1758568238679,-480.0,0.00019178,2]
[387082104,1758568238689,-328.0,0.00019178,2]
[387082106,1758568238699,-328.0,0.00019178,2]
[387082108,1758568238709,-328.0,0.00019178,2]
[387082110,1758568238718,-250.8203667,0.00019178,2]
[387082112,1758568238731,-77.1796333,0.00019178,2]
[387082114,1758568238740,-328.0,0.00019178,2]
[387082116,1758568238750,-328.0,0.00019178,2]
[387082118,1758568238759,-328.0,0.00019178,2]
[387082120,1758568238768,-328.0,0.00019178,2]
[387082122,1758568238778,-328.0,0.00019178,2]
[387082124,1758568238787,-328.0,0.00019178,2]
[387082125,1758568238796,-328.0,0.00019178,2]
[387082128,1758568238808,-259.07425379,0.00019178,2]
[387082137,1758568240166,-500.0,0.00019167,2]
[387082138,1758568240177,-500.0,0.00019167,2]
[387082139,1758568240187,-500.0,0.00019167,2]
[387082140,1758568240196,-500.0,0.00019167,2]
[387082141,1758568240206,-500.0,0.00019167,2]
[387082142,1758568240216,-482.80528874,0.00019167,2]
[387082143,1758568240226,-500.0,0.00019167,2]
[387082144,1758568240235,-500.0,0.00019167,2]
[387082145,1758568240245,-500.0,0.00019167,2]
[387082146,1758568240254,-500.0,0.00019167,2]
[387082147,1758568240264,-500.0,0.00019167,2]
[387082148,1758568240273,-574.7088774,0.00019167,2]
[387082149,1758568240284,-500.0,0.00019167,2]
[387082150,1758568240293,-500.0,0.00019167,2]
[387082151,1758568240303,-500.0,0.00019167,2]
[387082152,1758568240312,-500.0,0.00019167,2]
[387082153,1758568240321,-500.0,0.00019167,2]
[387082154,1758568240331,-208.73652929,0.00019167,2]
[387082155,1758568240340,-500.0,0.00019167,2]
[387082156,1758568240350,-500.0,0.00019167,2]
[387082157,1758568240359,-500.0,0.00019167,2]
[387082158,1758568240369,-500.0,0.00019167,2]
[387082159,1758568240378,-500.0,0.00019167,2]
[387082160,1758568240387,-68.92574621,0.00019178,2]
[387082161,1758568240397,-488.50358639,0.00019178,2]
[387082162,1758568240406,-328.0,0.00019178,2]
[387082163,1758568240416,-328.0,0.00019178,2]
[387082164,1758568240425,-328.0,0.00019178,2]
[387082165,1758568240434,-122.01797104,0.00019178,2]
[387082220,1758568243041,-349.52458384,0.00019178,2]
[387082222,1758568243051,-328.0,0.00019178,2]
[387082224,1758568243060,-328.0,0.00019178,2]
[387082226,1758568243069,-328.0,0.00019178,2]
[387082228,1758568243078,-488.02138071,0.00019178,2]
[387082230,1758568243088,-328.0,0.00019178,2]
[387082232,1758568243098,-328.0,0.00019178,2]
[387082234,1758568243107,-328.0,0.00019178,2]
[387082236,1758568243117,-480.0,0.00019178,2]
[387082238,1758568243126,-328.0,0.00019178,2]
[387082240,1758568243136,-390.87766476,0.00019178,2]
[387082242,1758568243145,-328.0,0.00019178,2]
[387082244,1758568243154,-328.0,0.00019178,2]
[387082246,1758568243164,-328.0,0.00019178,2]
[387082248,1758568243173,-328.0,0.00019178,2]
[387082250,1758568243182,-328.0,0.00019178,2]
[387082252,1758568243191,-328.0,0.00019178,2]
[387082254,1758568243200,-328.0,0.00019178,2]
[387082257,1758568243209,-328.0,0.00019178,2]
[387082259,1758568243219,-328.0,0.00019178,2]
[387082262,1758568243229,-447.71090213,0.00019178,2]
[387082264,1758568243239,-182.30384246,0.00019178,2]
[387082566,1758568246279,-145.69615754,0.00019178,2]
[387082567,1758568246292,-150.0,0.00019178,2]
[387082570,1758568246302,-328.0,0.00019178,2]
[387082571,1758568246312,-328.0,0.00019178,2]
[387082573,1758568246322,-328.0,0.00019178,2]
[387082575,1758568246331,-480.0,0.00019178,2]
[387082577,1758568246341,-480.0,0.00019178,2]
[387082579,1758568246350,-480.0,0.00019178,2]
[387082581,1758568246359,-483.48260203,0.00019178,2]
[387082582,1758568246368,-480.0,0.00019178,2]
[387082584,1758568246378,-480.0,0.00019178,2]
[387082586,1758568246387,-480.0,0.00019178,2]
[387082588,1758568246396,-483.85679427,0.00019178,2]
[387082590,1758568246405,-480.0,0.00019178,2]
[387082592,1758568246414,-480.0,0.00019178,2]
[387082594,1758568246422,-163.59,0.00019178,2]
[387082596,1758568246431,-486.08653928,0.00019178,2]
[387082598,1758568246440,-480.0,0.00019178,2]
[387082600,1758568246449,-470.75255859,0.00019178,2]
[387082601,1758568246459,-318.11660548,0.00019178,2]
[387082603,1758568246468,-468.46684287,0.00019178,2]
[387082605,1758568246477,-480.0,0.00019178,2]
[387082607,1758568246486,-480.0,0.00019178,2]
[387082609,1758568246495,-480.0,0.00019178,2]
[387082611,1758568246504,-480.0,0.00019178,2]
[387082612,1758568246513,-625.42,0.00019178,2]
[387082613,1758568246526,-500.0,0.00019178,2]
[387082614,1758568246538,-500.0,0.00019178,2]
[387082615,1758568246547,-500.0,0.00019178,2]
[387082616,1758568246556,-500.0,0.00019178,2]
[387082617,1758568246566,-500.0,0.00019178,2]
[387082618,1758568246577,-500.0,0.00019178,2]
[387082619,1758568246587,-480.0,0.00019178,2]
[387082620,1758568246598,-480.0,0.00019178,2]
[387082621,1758568246610,-480.0,0.00019178,2]
[387082622,1758568246621,-480.0,0.00019178,2]
[387082623,1758568246630,-480.0,0.00019178,2]
[387082624,1758568246640,-480.0,0.00019178,2]
[387082625,1758568246649,-480.0,0.00019178,2]
[387082626,1758568246658,-480.0,0.00019178,2]
[387082627,1758568246668,-480.0,0.00019178,2]
[387082628,1758568246678,-480.0,0.00019178,2]
[387082629,1758568246687,-480.0,0.00019178,2]
[387082630,1758568246696,-480.0,0.00019178,2]
[387082631,1758568246705,-480.0,0.00019178,2]
[387082632,1758568246714,-480.0,0.00019178,2]
[387082633,1758568246723,-480.0,0.00019178,2]
[387082634,1758568246733,-480.0,0.00019178,2]
[387082635,1758568246741,-480.0,0.00019178,2]
[387082636,1758568246750,-480.0,0.00019178,2]
[387082637,1758568246759,-480.0,0.00019178,2]
[387082638,1758568246768,-480.0,0.00019178,2]
[387082639,1758568246777,-480.0,0.00019178,2]
[387082640,1758568246788,-480.0,0.00019178,2]
[387082641,1758568246798,-480.0,0.00019178,2]
[387082642,1758568246808,-480.0,0.00019178,2]
[387082643,1758568246817,-480.0,0.00019178,2]
[387082644,1758568246826,-480.0,0.00019178,2]
[387082646,1758568246836,-480.0,0.00019178,2]
[387082648,1758568246845,-371.23187879,0.00019178,2]
[387082650,1758568246854,-480.0,0.00019178,2]
[387082652,1758568246863,-480.0,0.00019178,2]
[387082654,1758568246872,-814.12,0.00019178,2]
[387082656,1758568246882,-480.0,0.00019178,2]
[387082658,1758568246892,-480.0,0.00019178,2]
[387082660,1758568246901,-480.0,0.00019178,2]
[387082662,1758568246911,-480.0,0.00019178,2]
[387082664,1758568246920,-480.0,0.00019178,2]
[387082666,1758568246929,-480.0,0.00019178,2]
[387082668,1758568246938,-480.0,0.00019178,2]
[387082670,1758568246947,-480.0,0.00019178,2]
[387082672,1758568246956,-3912.38,0.00019178,2]
[387082674,1758568246965,-482.25,0.00019178,2]
[387082676,1758568246974,-480.0,0.00019178,2]
[387082678,1758568246983,-480.0,0.00019178,2]
[387082680,1758568246992,-480.0,0.00019178,2]
[387082682,1758568247001,-480.0,0.00019178,2]
[387082684,1758568247010,-480.0,0.00019178,2]
[387082686,1758568247019,-480.0,0.00019178,2]
[387082688,1758568247029,-480.0,0.00019178,2]
[387082690,1758568247040,-480.0,0.00019178,2]
[387082692,1758568247049,-480.0,0.00019178,2]
[387082694,1758568247058,-480.0,0.00019178,2]
[387082696,1758568247067,-480.0,0.00019178,2]
[387082698,1758568247076,-1780.77,0.00019178,2]
[387082699,1758568247086,-480.0,0.00019178,2]
[387082701,1758568247095,-480.0,0.00019178,2]
[387082703,1758568247104,-480.0,0.00019178,2]
[387082705,1758568247113,-480.0,0.00019178,2]
[387082707,1758568247122,-480.0,0.00019178,2]
[387082709,1758568247132,-480.0,0.00019178,2]
[387082711,1758568247141,-480.0,0.00019178,2]
[387082713,1758568247150,-480.0,0.00019178,2]
[387082715,1758568247159,-480.0,0.00019178,2]
[387082717,1758568247168,-480.0,0.00019178,2]
[387082719,1758568247178,-480.0,0.00019178,2]
[387082722,1758568247188,-480.0,0.00019178,2]
[387082723,1758568247196,-480.0,0.00019178,2]
[387082725,1758568247205,-480.0,0.00019178,2]
[387082727,1758568247214,-480.0,0.00019178,2]
[387082729,1758568247223,-480.0,0.00019178,2]
[387082731,1758568247232,-497.04936136,0.00019178,2]
[387082733,1758568247241,-480.0,0.00019178,2]
[387082735,1758568247251,-778.24,0.00019178,2]
[387082737,1758568247260,-480.0,0.00019178,2]
[387082739,1758568247269,-480.0,0.00019178,2]
[387082741,1758568247278,-480.0,0.00019178,2]
[387082743,1758568247287,-480.0,0.00019178,2]
[387082745,1758568247296,-480.0,0.00019178,2]
[387082759,1758568247413,-480.0,0.00019178,2]
[387082761,1758568247423,-654.47,0.00019178,2]
[387082763,1758568247433,-480.0,0.00019178,2]
[387082765,1758568247442,-480.0,0.00019178,2]
[387082767,1758568247451,-480.0,0.00019178,2]
[387082769,1758568247461,-480.0,0.00019178,2]
[387082771,1758568247470,-480.0,0.00019178,2]
[387082773,1758568247481,-480.0,0.00019178,2]
[387082775,1758568247490,-480.0,0.00019178,2]